lending/lending_fUSD_20250830
["ID","MTS","AMOUNT","RATE_DAILY","PERIOD"]
[382396764,1756596675152,-400.0,0.00044657,120]
[382396765,1756596675161,-400.0,0.00044657,120]
[382396766,1756596675170,-400.0,0.00044657,120]
[382396767,1756596675180,-400.0,0.00044657,120]
[382396768,1756596675189,-400.0,0.00044657,120]
[382396769,1756596675198,-400.0,0.00044657,120]
[382396770,1756596675208,-400.0,0.00044657,120]
[382396771,1756596675217,-400.0,0.00044657,120]
[382396772,1756596675226,-400.0,0.00044657,120]
[382396773,1756596675236,-400.0,0.00044657,120]
[382396774,1756596675245,-400.0,0.00044657,120]
[382396775,1756596675255,-400.0,0.00044657,120]
[382396776,1756596675264,-400.0,0.00044657,30]
[382396777,1756596675273,-400.0,0.00044657,120]
[382396778,1756596675282,-400.0,0.00044657,120]
[382396779,1756596675292,-400.0,0.00044657,120]
[382396780,1756596675302,-400.0,0.00044657,120]
[382396781,1756596675311,-400.0,0.00044657,120]
[382396782,1756596675320,-400.0,0.00044657,120]
[382396783,1756596675329,-400.0,0.00044657,120]
[382396784,1756596675338,-400.0,0.00044657,120]
[382396785,1756596675347,-400.0,0.00044657,120]
[382396786,1756596675356,-400.0,0.00044657,120]
[382396787,1756596675366,-334.49,0.00044657,120]
[382396788,1756596675376,-400.0,0.00044657,120]
[382396789,1756596675385,-403.06,0.00044657,120]
[382396790,1756596675394,-400.0,0.00044657,120]
[382396791,1756596675404,-483.64,0.00044657,120]
[382396792,1756596675413,-366.11,0.00044657,120]
[382396793,1756596675422,-400.0,0.00044657,120]
[382396794,1756596675432,-410.85,0.00044657,120]
[382396795,1756596675441,-400.0,0.00044657,120]
[382396796,1756596675451,-400.0,0.00044657,120]
[382396797,1756596675460,-400.0,0.00044657,120]
[382396798,1756596675470,-400.0,0.00044657,120]
[382396799,1756596675479,-400.0,0.00044657,120]
[382396800,1756596675488,-400.0,0.00044657,120]
[382396801,1756596675498,-402.68725107,0.00044657,120]
[382396802,1756596675507,-400.0,0.00044657,120]
[382396803,1756596675517,-400.0,0.00044657,30]
[382396804,1756596675526,-400.0,0.00044657,120]
[382396805,1756596675535,-400.0,0.00044657,120]
[382396806,1756596675545,-400.0,0.00044657,120]
[382396807,1756596675554,-400.0,0.00044657,120]
[382396808,1756596675563,-400.0,0.00044657,120]
[382396809,1756596675573,-400.0,0.00044657,120]
[382396810,1756596675583,-184.3837419,0.00044657,120]
[382396811,1756596675592,-188.72,0.00044657,120]
[382396812,1756596675603,-400.0,0.00044657,120]
[382396813,1756596675613,-400.0,0.00044657,120]
[382396814,1756596675622,-400.0,0.00044657,120]
[382396815,1756596675632,-400.0,0.00044657,120]
[382396816,1756596675642,-400.0,0.00044657,120]
[382396817,1756596675651,-400.0,0.00044657,120]
[382396818,1756596675661,-322.42,0.00044657,120]
[382396819,1756596675670,-400.0,0.00044657,120]
[382396820,1756596675680,-400.0,0.00044657,120]
[382396821,1756596675691,-400.0,0.00044657,120]
[382396822,1756596675700,-408.0,0.00044657,120]
[382396823,1756596675710,-400.0,0.00044657,120]
[382396824,1756596675720,-489.2,0.00044657,118]
[382396825,1756596675729,-400.0,0.00044657,120]
[382396826,1756596675739,-193.92,0.00044657,120]
[382396827,1756596675748,-400.0,0.00044657,120]
[382396828,1756596675758,-400.0,0.00044657,120]
[382396829,1756596675767,-237.42,0.00044657,120]
[382396830,1756596675776,-400.0,0.00044657,120]
[382396831,1756596675787,-400.0,0.00044657,120]
[382396832,1756596675796,-400.0,0.00044657,120]
[382396833,1756596675806,-500.0,0.00044657,2]
[382396834,1756596675816,-400.0,0.00044657,120]
[382396835,1756596675826,-400.0,0.00044657,120]
[382396836,1756596675835,-400.0,0.00044657,120]
[382396837,1756596675845,-543.91453743,0.00044657,120]
[382396838,1756596675854,-400.0,0.00044657,120]
[382396839,1756596675863,-400.0,0.00044657,120]
[382396840,1756596675873,-400.0,0.00044657,120]
[382396841,1756596675882,-400.0,0.00044657,7]
[382396842,1756596675891,-391.77982579,0.00044657,120]
[382396843,1756596675901,-422.3,0.00044657,120]
[382396844,1756596675911,-400.0,0.00044657,120]
[382396845,1756596675920,-400.0,0.00044657,120]
[382396846,1756596675929,-400.0,0.00044657,120]
[382396847,1756596675939,-400.0,0.00044657,120]
[382396848,1756596676156,-400.0,0.00044657,120]
[382396849,1756596676166,-400.0,0.00044657,120]
[382396850,1756596676176,-400.0,0.00044657,120]
[382396851,1756596676186,-400.0,0.00044657,120]
[382396852,1756596676196,-400.0,0.00044657,120]
[382396853,1756596676205,-400.0,0.00044657,120]
[382396854,1756596676215,-400.0,0.00044657,120]
[382396855,1756596676224,-400.0,0.00044657,120]
[382396856,1756596676234,-400.0,0.00044657,120]
[382396857,1756596676243,-400.0,0.00044657,120]
[382396858,1756596676253,-400.0,0.00044657,120]
[382396859,1756596676264,-400.0,0.00044657,120]
[382396860,1756596676273,-519.34,0.00044657,120]
[382396861,1756596676283,-243.08,0.00044657,120]
[382396862,1756596676294,-400.0,0.00044657,120]
[382396863,1756596676305,-400.0,0.00044657,120]
[382396864,1756596676315,-786.55,0.00044657,12]
[382396865,1756596676325,-400.0,0.00044657,120]
[382396866,1756596676335,-400.0,0.00044657,120]
[382396867,1756596676346,-333.39,0.00044657,120]
[382396868,1756596676356,-400.0,0.00044657,120]
[382396869,1756596676366,-400.0,0.00044657,120]
[382396870,1756596676377,-400.0,0.00044657,120]
[382396871,1756596676387,-400.0,0.00044657,120]
[382396872,1756596676397,-400.0,0.00044657,120]
[382396873,1756596676406,-400.0,0.00044657,120]
[382396874,1756596676416,-400.0,0.00044657,120]
[382396875,1756596676426,-400.0,0.00044657,120]
[382396876,1756596676435,-400.0,0.00044657,120]
[382396877,1756596676445,-400.0,0.00044657,120]
[382396878,1756596676454,-400.0,0.00044657,120]
[382396879,1756596676464,-400.0,0.00044657,120]
[382396880,1756596676473,-400.0,0.00044657,16]
[382396881,1756596676483,-400.0,0.00044657,120]
[382396882,1756596676493,-400.0,0.00044657,120]
[382396883,1756596676502,-400.0,0.00044657,120]
[382396884,1756596676512,-400.0,0.00044657,120]
[382396885,1756596676523,-400.0,0.00044657,120]
[382396886,1756596676533,-262.75,0.00044657,120]
[382396887,1756596676543,-400.0,0.00044657,120]
[382396888,1756596676553,-400.0,0.00044657,120]
[382396889,1756596676562,-400.0,0.00044657,120]
[382396890,1756596676571,-400.0,0.00044657,120]
[382396891,1756596676581,-400.0,0.00044657,120]
[382396892,1756596676591,-400.0,0.00044657,120]
[382396893,1756596676603,-400.0,0.00044657,120]
[382396894,1756596676613,-400.0,0.00044657,120]
[382396895,1756596676623,-400.0,0.00044657,120]
[382396896,1756596676633,-400.0,0.00044657,120]
[382396897,1756596676643,-400.0,0.00044657,120]
[382396898,1756596676653,-400.0,0.00044657,120]
[382396899,1756596676662,-400.0,0.00044657,120]
[382396900,1756596676672,-400.0,0.00044657,120]
[382396901,1756596676682,-346.17,0.00044657,120]
[382396902,1756596676692,-448.88,0.00044657,120]
[382396903,1756596676702,-400.0,0.00044657,120]
[382396904,1756596676711,-254.27,0.00044657,120]
[382396905,1756596676721,-400.0,0.00044657,120]
[382396906,1756596676730,-400.0,0.00044657,120]
[382396907,1756596676740,-7300.11,0.00044657,14]
[382396908,1756596676750,-400.0,0.00044657,120]
[382396909,1756596676759,-400.0,0.00044657,120]
[382396910,1756596676770,-363.01663357,0.00044657,120]
[382396911,1756596676779,-305.51,0.00044657,120]
[382396912,1756596676788,-400.0,0.00044657,120]
[382396913,1756596676797,-400.0,0.00044657,120]
[382396914,1756596676807,-400.0,0.00044657,120]
[382396915,1756596676817,-400.0,0.00044657,120]
[382396916,1756596676828,-400.0,0.00044657,7]
[382396917,1756596676841,-400.0,0.00044657,120]
[382396918,1756596676851,-400.0,0.00044657,120]
[382396919,1756596676860,-400.0,0.00044657,120]
[382396920,1756596676870,-400.0,0.00044657,120]
[382396921,1756596676880,-400.0,0.00044657,120]
[382396922,1756596676889,-400.0,0.00044657,120]
[382396923,1756596676899,-400.0,0.00044657,120]
[382396924,1756596676909,-271.46,0.00044657,120]
[382396925,1756596676920,-400.0,0.00044657,120]
[382396926,1756596676930,-400.0,0.00044657,60]
[382396927,1756596676940,-202.02679119,0.00044657,120]
[382396928,1756596676949,-400.0,0.00044657,120]
[382396929,1756596676959,-607.95,0.00044657,30]
[382396930,1756596676968,-400.0,0.00044657,120]
[382396931,1756596676977,-400.0,0.00044657,120]
[382396932,1756596677122,-393.07,0.00044657,120]
[382396933,1756596677133,-400.0,0.00044657,120]
[382396934,1756596677142,-400.0,0.00044657,120]
[382396935,1756596677152,-325.23647128,0.00044657,120]
[382396936,1756596677161,-300.0,0.00044657,120]
[382396937,1756596677170,-400.0,0.00044657,120]
[382396938,1756596677180,-400.0,0.00044657,120]
[382396939,1756596677190,-400.0,0.00044657,120]
[382396940,1756596677199,-400.0,0.00044657,120]
[382396941,1756596677209,-400.0,0.00044657,120]
[382396942,1756596677220,-400.0,0.00044657,120]
[382396943,1756596677230,-400.0,0.00044657,120]
[382396944,1756596677239,-400.0,0.00044657,120]
[382396945,1756596677249,-480.74223027,0.00044657,120]
[382396946,1756596677258,-400.0,0.00044657,120]
[382396947,1756596677267,-400.0,0.00044657,120]
[382396948,1756596677277,-319.54,0.00044657,120]
[382396949,1756596677286,-400.0,0.00044657,120]
[382396950,1756596677295,-400.0,0.00044657,120]
[382396951,1756596677305,-400.0,0.00044657,120]
[382396952,1756596677314,-400.0,0.00044657,120]
[382396953,1756596677326,-299.36,0.00044657,120]
[382396954,1756596677336,-400.0,0.00044657,120]
[382396955,1756596677346,-400.0,0.00044657,120]
[382396956,1756596677355,-400.0,0.00044657,120]
[382396957,1756596677365,-400.0,0.00044657,120]
[382396958,1756596677374,-400.0,0.00044657,120]
[382396959,1756596677384,-400.0,0.00044657,120]
[382396960,1756596677394,-400.0,0.00044657,120]
[382396961,1756596677403,-400.0,0.00044657,120]
[382396962,1756596677413,-400.0,0.00044657,120]
[382396963,1756596677422,-400.0,0.00044657,120]
[382396964,1756596677432,-421.11,0.00044657,120]
[382396965,1756596677442,-500.0,0.00044658,9]
[382396966,1756596677460,-158.31795419,0.00044685,30]
[382396967,1756596677470,-1524.0,0.00044842,120]
[382396968,1756596677479,-151.04065733,0.00044877,30]
[382396969,1756596677488,-150.0,0.00044877,30]
[382396970,1756596677498,-225.30921063,0.00044877,30]
[382396971,1756596677507,-150.0,0.00044877,30]
[382396972,1756596677517,-150.0,0.00044877,30]
[382396973,1756596677527,-150.0,0.00044877,30]
[382396974,1756596677536,-150.0,0.00044877,30]
[382396975,1756596677545,-150.0,0.00044877,30]
[382396976,1756596677555,-150.0,0.00044877,30]
[382396977,1756596677564,-150.0,0.00044877,30]
[382396978,1756596677575,-150.0,0.00044877,30]
[382396979,1756596677584,-150.0,0.00044877,30]
[382396980,1756596677593,-150.0,0.00044877,30]
[382396981,1756596677607,-150.0,0.00044877,30]
[382396982,1756596677617,-150.0,0.00044877,30]
[382396983,1756596677626,-152.0,0.00044877,90]
[382396984,1756596677635,-161.0,0.00044877,90]
[382396985,1756596677645,-614.0,0.00044877,90]
[382396986,1756596677654,-1000.0,0.000449,7]
[382396987,1756596677663,-200.0,0.000449,27]
[382396988,1756596677673,-151.04065733,0.00044927,30]
[382396989,1756596677682,-225.30921063,0.00044927,30]
[382396990,1756596677692,-1616.33,0.00044929,120]
[382396991,1756596677701,-266.03628511,0.00044929,120]
[382396992,1756596678077,-151.0,0.00036936,2]
[382396993,1756596678087,-154.36,0.00037015,2]
[382396994,1756596678120,-16.64,0.00037015,2]
[382396995,1756596678129,-151.0,0.00037035,2]
[382396996,1756596678139,-249.02996373,0.000403,120]
[382396997,1756596678148,-173.95,0.00044442,30]
[382396998,1756596678157,-911.30003627,0.00044442,30]
[382396999,1756596678538,-281.03,0.00017919,2]
[382397000,1756596678569,-300.65971732,0.00017919,2]
[382397001,1756596678762,-2892.89696534,0.00017919,2]
[382397002,1756596678773,-2153.928394,0.00017919,2]
[382397003,1756596678783,-151.0,0.00036936,2]
[382397004,1756596678792,-207.162016,0.00036936,2]
[382397005,1756596678801,-151.0,0.00036936,30]
[382397006,1756596678811,-151.0,0.00037035,2]
[382397007,1756596678820,-151.0,0.00037035,2]
[382397008,1756596678830,-151.0,0.00037035,2]
[382397009,1756596678839,-151.0,0.00037035,30]
[382397010,1756596678852,-151.0,0.00037035,30]
[382397011,1756596678861,-151.0,0.00037039,2]
[382397012,1756596678871,-151.0,0.00037039,2]
[382397013,1756596678880,-274.408744,0.00037039,30]
[382397014,1756596678893,-314.62,0.00037277,2]
[382397015,1756596678903,-2182.0,0.00038322,2]
[382397016,1756596678912,-314.62,0.0003923,14]
[382397017,1756596678922,-151.0,0.0004,2]
[382397018,1756596678931,-151.0,0.0004,2]
[382397019,1756596678940,-249.02996373,0.000403,120]
[382397020,1756596678950,-314.62,0.00040779,14]
[382397021,1756596678959,-166.26,0.00041232,30]
[382397022,1756596678968,-150.0,0.00041596,3]
[382397023,1756596678977,-209.75,0.00042465,14]
[382397024,1756596678987,-718.0,0.0004287,2]
[382397025,1756596678997,-400.0,0.00043835,120]
[382397026,1756596679006,-300.0,0.00043836,3]
[382397027,1756596679016,-186.62,0.00044109,120]
[382397028,1756596679026,-275.60996373,0.00044442,30]
[382397029,1756596679035,-800.21,0.00044442,30]
[382397030,1756596679044,-173.95,0.00044442,30]
[382397031,1756596679054,-166.26,0.00044442,30]
[382397032,1756596679063,-408.97,0.00044442,30]
[382397033,1756596679072,-800.21,0.00044442,30]
[382397034,1756596679081,-166.26,0.00044442,30]
[382397035,1756596679091,-173.95,0.00044442,30]
[382397036,1756596679100,-408.97,0.00044442,30]
[382397037,1756596679109,-150.0,0.00044442,30]
[382397038,1756596679118,-150.0,0.00044442,30]
[382397039,1756596679128,-150.0,0.00044442,30]
[382397040,1756596679138,-408.97,0.00044442,30]
[382397041,1756596679147,-408.97,0.00044442,30]
[382397042,1756596679156,-469.67,0.00044442,30]
[382397043,1756596679166,-150.0,0.00044442,30]
[382397044,1756596679177,-150.0,0.00044442,30]
[382397045,1756596679187,-173.95,0.00044442,30]
[382397046,1756596679198,-166.26,0.00044442,30]
[382397047,1756596679207,-408.97,0.00044442,30]
[382397048,1756596679217,-408.97,0.00044442,30]
[382397049,1756596679227,-469.67,0.00044442,30]
[382397050,1756596679236,-150.0,0.00044442,30]
[382397051,1756596679246,-173.95,0.00044442,30]
[382397052,1756596679257,-166.26,0.00044442,30]
[382397053,1756596679267,-400.0,0.00044657,120]
[382397054,1756596679276,-233.96371489,0.00044929,120]
[382397055,1756596679286,-691.82,0.0004493,120]
[382397056,1756596679297,-855.3,0.0004493,120]
[382397057,1756596679307,-300.0,0.0004493,30]
[382397058,1756596679318,-360.1617921,0.00044931,120]
[382397059,1756596679328,-400.0,0.00044931,120]
[382397060,1756596679337,-464.30206778,0.00044931,120]
[382397061,1756596679349,-400.0,0.00044931,60]
[382397062,1756596679359,-400.0,0.00044931,120]
[382397063,1756596679370,-400.0,0.00044931,120]
[382397064,1756596679380,-500.0,0.00044931,120]
[382397065,1756596679392,-400.0,0.00044931,120]
[382397066,1756596679404,-247.35051443,0.00044931,120]
[382397067,1756596679414,-400.0,0.00044931,120]
[382397068,1756596679423,-400.0,0.00044931,120]
[382397069,1756596679434,-298.31199197,0.00044931,120]
[382397070,1756596679443,-400.0,0.00044931,120]
[382397071,1756596679607,-400.0,0.00044931,120]
[382397072,1756596679617,-400.0,0.00044931,120]
[382397073,1756596679627,-467.63,0.00044931,120]
[382397074,1756596679636,-400.0,0.00044931,120]
[382397075,1756596679645,-400.0,0.00044931,120]
[382397076,1756596679655,-400.0,0.00044931,120]
[382397077,1756596679665,-244.54,0.00044931,120]
[382397078,1756596679675,-400.0,0.00044931,120]
[382397079,1756596679684,-400.0,0.00044931,120]
[382397080,1756596679694,-219.1,0.00044931,120]
[382397081,1756596679703,-400.0,0.00044931,120]
[382397082,1756596679713,-400.0,0.00044931,120]
[382397083,1756596679722,-400.0,0.00044931,120]
[382397084,1756596679742,-528.21,0.00044931,120]
[382397085,1756596679752,-400.0,0.00044931,120]
[382397086,1756596679761,-415.57,0.00044931,120]
[382397087,1756596679771,-525.93,0.00044931,120]
[382397088,1756596679780,-400.0,0.00044931,120]
[382397089,1756596679790,-484.16,0.00044931,120]
[382397090,1756596679799,-400.0,0.00044931,120]
[382397091,1756596679809,-400.0,0.00044931,120]
[382397092,1756596679819,-400.0,0.00044931,120]
[382397093,1756596679829,-400.0,0.00044931,120]
[382397094,1756596679839,-400.0,0.00044931,120]
[382397095,1756596679849,-470.29,0.00044931,120]
[382397096,1756596679860,-400.0,0.00044931,120]
[382397097,1756596679870,-400.0,0.00044931,120]
[382397098,1756596679879,-400.0,0.00044931,120]
[382397099,1756596679889,-400.0,0.00044931,120]
[382397100,1756596679898,-400.0,0.00044931,120]
[382397101,1756596679908,-528.5,0.00044931,120]
[382397102,1756596679918,-400.0,0.00044931,120]
[382397103,1756596679928,-378.34,0.00044931,120]
[382397104,1756596679937,-400.0,0.00044931,120]
[382397105,1756596679947,-400.0,0.00044931,120]
[382397106,1756596679957,-400.0,0.00044931,120]
[382397107,1756596679967,-400.0,0.00044931,120]
[382397108,1756596679976,-400.0,0.00044931,120]
[382397109,1756596679986,-400.0,0.00044931,120]
[382397110,1756596679996,-400.0,0.00044931,120]
[382397111,1756596680006,-400.0,0.00044931,120]
[382397112,1756596680016,-400.0,0.00044931,120]
[382397113,1756596680025,-1.3733915,0.00044931,120]
[382397114,1756596680040,-186.3966085,0.00044931,120]
[382397115,1756596680050,-400.0,0.00044931,120]
[382397116,1756596680059,-400.0,0.00044931,120]
[382397117,1756596680069,-400.0,0.00044931,120]
[382397118,1756596680079,-400.0,0.00044931,120]
[382397119,1756596680089,-400.0,0.00044931,120]
[382397120,1756596680098,-400.0,0.00044931,120]
[382397121,1756596680108,-400.0,0.00044931,120]
[382397122,1756596680118,-248.66,0.00044931,120]
[382397123,1756596680128,-460.91,0.00044931,30]
[382397124,1756596680137,-400.0,0.00044931,120]
[382397125,1756596680147,-400.0,0.00044931,120]
[382397126,1756596680156,-400.0,0.00044931,120]
[382397127,1756596680166,-400.0,0.00044931,120]
[382397128,1756596680175,-400.0,0.00044931,120]
[382397129,1756596680184,-400.0,0.00044931,120]
[382397130,1756596680194,-400.0,0.00044931,120]
[382397131,1756596680204,-400.0,0.00044931,120]
[382397132,1756596680214,-400.0,0.00044931,120]
[382397133,1756596680224,-400.0,0.00044931,120]
[382397134,1756596680234,-282.77,0.00044931,120]
[382397135,1756596680244,-400.0,0.00044931,120]
[382397136,1756596680254,-281.83,0.00044931,120]
[382397137,1756596680264,-452.51,0.00044931,120]
[382397138,1756596680274,-400.0,0.00044931,120]
[382397139,1756596680283,-400.0,0.00044931,120]
[382397140,1756596680293,-400.0,0.00044931,120]
[382397141,1756596680303,-400.0,0.00044931,120]
[382397142,1756596680312,-400.0,0.00044931,120]
[382397143,1756596680324,-400.0,0.00044931,120]
[382397144,1756596680333,-400.0,0.00044931,120]
[382397145,1756596680342,-426.38,0.00044931,120]
[382397146,1756596680352,-400.0,0.00044931,120]
[382397147,1756596680362,-400.0,0.00044931,120]
[382397148,1756596680371,-400.0,0.00044931,120]
[382397149,1756596680381,-400.0,0.00044931,120]
[382397150,1756596680391,-383.3066777,0.00044931,120]
[382397151,1756596680403,-200.7333223,0.00044931,120]
[382397152,1756596680413,-400.0,0.00044931,120]
[382397153,1756596680422,-97.43894304,0.00044931,120]
[382397154,1756596680434,-301.03980373,0.00044931,120]
[382397158,1756597201956,1000.0,0.00026988,120]
[382397159,1756597202909,251.0,0.00026988,120]
[382397160,1756597202949,251.0,0.00026267,120]
[382397161,1756597204993,300.0,0.00026988,120]
[382397165,1756597332891,162.54,0.00013699,2]
[382397179,1756597495577,162.67,0.00017589,2]
[382397180,1756597804619,1000.0,0.00026988,120]
[382397189,1756597831729,-213.8597207,0.00024535,2]
[382397190,1756597831739,-117.63637261,0.00026,2]
[382397191,1756597831750,-522.04790989,0.00026,2]
[382397192,1756597831762,-513.3852862,0.00026,2]
[382397193,1756597836129,-846.9304313,0.00026,2]
[382397194,1756597836138,-162.54,0.00026027,2]
[382397195,1756597836147,-250.0,0.00026988,2]
[382397196,1756597836157,-163.72,0.00027672,2]
[382397197,1756597836167,-250.0,0.00033018,2]
[382397198,1756597836178,-221.86666991,0.000331,2]
[382397199,1756597836187,-1200.0,0.00033628,3]
[382397200,1756597836197,-2200.86603346,0.00033629,2]
[382397201,1756597836208,-409.97273087,0.00033629,2]
[382397202,1756597836218,-160.0,0.00033641,2]
[382397203,1756597836228,-212.33763476,0.00033641,2]
[382397204,1756597836238,-160.0,0.00033641,2]
[382397205,1756597836247,-3000.0,0.00033852,2]
[382397206,1756597836257,-247.81819,0.00033888,7]
[382397207,1756597836266,-247.81819,0.00034088,7]
[382397208,1756597836275,-2182.0,0.00034181,2]
[382397209,1756597836285,-247.81819,0.00034288,7]
[382397210,1756597836294,-170.24,0.00034299,120]
[382397211,1756597836303,-4093.01,0.00034338,2]
[382397212,1756597836313,-2182.0,0.00034379,2]
[382397213,1756597836322,-176.04,0.00034435,2]
[382397214,1756597836331,-1500.0,0.00034453,120]
[382397215,1756597836341,-247.81819,0.00034488,7]
[382397216,1756597836350,-160.0,0.00034488,7]
[382397217,1756597836359,-2751.0,0.000345,120]
[382397218,1756597836368,-1000.0,0.00034507,2]
[382397219,1756597836378,-666.0,0.00034545,3]
[382397220,1756597836387,-2182.0,0.00034549,120]
[382397221,1756597836396,-2182.0,0.00034583,7]
[382397222,1756597836405,-158.88,0.00034593,2]
[382397223,1756597836415,-2182.0,0.00034617,7]
[382397224,1756597836424,-388.04,0.00034624,2]
[382397225,1756597836434,-247.81819,0.00034688,7]
[382397226,1756597836443,-1362.0,0.00034767,2]
[382397227,1756597836453,-2182.0,0.00034861,120]
[382397228,1756597836463,-247.81819,0.00034888,7]
[382397229,1756597836472,-871.135,0.00034888,40]
[382397230,1756597836482,-2182.0,0.00034892,2]
[382397231,1756597836492,-1362.0,0.00034898,120]
[382397232,1756597836503,-2182.0,0.00034913,7]
[382397233,1756597836512,-247.81819,0.00035088,7]
[382397234,1756597836522,-3111.0,0.00035221,2]
[382397235,1756597836531,-1362.0,0.00035279,120]
[382397236,1756597836540,-247.81819,0.00035288,7]
[382397237,1756597836550,-247.81819,0.00035488,7]
[382397238,1756597836559,-162.88,0.00035535,2]
[382397239,1756597836568,-247.81819,0.00035688,7]
[382397240,1756597836578,-1362.0,0.00035698,2]
[382397241,1756597836587,-1362.0,0.00035774,2]
[382397242,1756597836596,-1491.4278939,0.00035888,30]
[382397247,1756597837483,-301.51651019,0.00035888,30]
[382397249,1756597837546,-353.47052981,0.00035888,30]
[382397250,1756597837720,-83.9488461,0.00035888,30]
[382397251,1756597837729,-247.81819,0.00035888,7]
[382397252,1756597837739,-98.09516662,0.00035985,7]
[382397253,1756597837750,-1263.90483338,0.00035985,7]
[382397254,1756597837761,-409.97273087,0.00035985,7]
[382397255,1756597837770,-1195.70502264,0.00036033,2]
[382397290,1756597839525,-986.29497736,0.00036033,2]
[382397291,1756597839535,-41.26808715,0.00036088,30]
[382397292,1756597839546,-812.82819998,0.00036088,30]
[382397293,1756597839558,-1376.26749287,0.00036088,30]
[382397294,1756597839568,-247.81819,0.00036088,7]
[382397295,1756597839577,-711.65051713,0.00036146,2]
[382397296,1756597839589,-346.25096,0.00036146,2]
[382397297,1756597839600,-304.09852287,0.00036146,2]
[382397298,1756597839610,-166.05957713,0.0003617,7]
[382397299,1756597839629,-531.08131506,0.0003617,7]
[382397300,1756597839756,-1088.11676884,0.0003617,7]
[382397302,1756597839898,-396.74233897,0.0003617,7]
[382397303,1756597839907,-49.34413774,0.0003625,5]
[382397316,1756597842764,-457.75203633,0.0003625,5]
[382397317,1756597842774,-2230.36378,0.00036288,30]
[382397318,1756597842783,-133.13184865,0.00036288,7]
[382397319,1756597842822,-114.68634135,0.00036288,7]
[382397320,1756597842831,-169.96521484,0.00036292,7]
[382397321,1756597842841,-1124.15167066,0.00036293,2]
[382397325,1756597845664,-1132.84286779,0.00036293,2]
[382397326,1756597845736,-727.42898272,0.00036293,2]
[382397327,1756597845748,-302.0,0.00036293,2]
[382397328,1756597845806,-731.67077883,0.00036293,2]
[382397329,1756597845816,-2114.6474,0.00036293,2]
[382397330,1756597845825,-1362.0,0.00036304,2]
[382397331,1756597845835,-2230.36378,0.00036488,30]
[382397332,1756597845844,-247.81819,0.00036488,7]
[382397333,1756597845854,-3226.107,0.0003659,2]
[382397334,1756597845863,-2230.36378,0.00036688,30]
[382397335,1756597845873,-247.81819,0.00036688,7]
[382397336,1756597845882,-2500.0,0.00036736,2]
[382397337,1756597845891,-462.12,0.00036826,3]
[382397338,1756597845901,-380.81907771,0.00036835,15]
[382397339,1756597845911,-9855.5628,0.00036836,2]
[382397340,1756597845920,-3378.55057459,0.00036836,2]
[382397341,1756597845931,-949.65,0.00036836,2]
[382397342,1756597845943,-431.885,0.00036836,2]
[382397343,1756597845955,-1466.33591318,0.00036836,2]
[382397344,1756597845966,-14544.67486713,0.00036836,2]
[382397345,1756597846070,-13948.77910915,0.00036836,2]